fUST/lending_fUST_20260217
["ID","MTS","AMOUNT","RATE_DAILY","PERIOD"]
[405720365,1771257670222,500.0,0.00013273,2]
[405720366,1771257967159,500.0,0.00013273,2]
[405720367,1771257971279,203.44987589,0.00013699,2]
[405720368,1771258001311,500.0,0.00013273,2]
[405720369,1771258001342,1000.0,0.00013821,2]
[405720370,1771258001400,399.85900595,0.00014368,2]
[405720371,1771258028134,-1035.13288323,0.00017511,2]
[405720408,1771258232465,-5000.0,0.0001732,2]
[405720410,1771258232475,-2141.27630004,0.00017495,2]
[405720412,1771258232488,-216.88958681,0.00017595,2]
[405720414,1771258232497,-91.83411315,0.0001789,2]
[405720417,1771258232517,-208.16588685,0.0001789,2]
[405720419,1771258232527,-614.5363946,0.00017967,2]
[405720421,1771258232536,-250.0,0.00018148,2]
[405720423,1771258232545,-188.96,0.000187,2]
[405720425,1771258232555,-2300.89410988,0.00018734,2]
[405720427,1771258232564,-1200.0,0.00018832,2]
[405720429,1771258232574,-300.0,0.00018833,2]
[405720431,1771258232583,-300.0,0.00018833,2]
[405720433,1771258232592,-526.69521666,0.00018833,2]
[405720435,1771258232607,-281.93928794,0.00018833,2]
[405720437,1771258232616,-654.32670286,0.00018835,2]
[405720483,1771258238860,-4237.11762725,0.00018835,2]
[405720498,1771258240840,-4096.66985013,0.00018835,2]
[405720502,1771258240915,-17875.52869661,0.00018835,2]
[405720503,1771258240924,-1200.81699813,0.00018925,2]
[405720504,1771258240936,-799.18300187,0.00018925,2]
[405720505,1771258240945,-500.0,0.00018925,2]
[405720506,1771258240955,-211.37381251,0.00018925,2]
[405720507,1771258240965,-194.72792766,0.00018925,2]
[405720508,1771258240975,-500.0,0.00018925,2]
[405720509,1771258240984,-171.3554175,0.00018935,2]
[405720510,1771258240994,-500.0,0.00018937,2]
[405720511,1771258241003,-165.02211358,0.00018937,2]
[405720512,1771258241013,-3591.8371523,0.00018939,2]
[405720530,1771258243835,-4505.46825122,0.00018647,2]
[405720531,1771258243845,-6135.473698,0.00018939,2]
[405720532,1771258243854,-200.0,0.00019116,120]
[405720533,1771258243863,-300.0,0.00019316,2]
[405720534,1771258243873,-300.0,0.00019316,2]
[405720535,1771258243882,-300.0,0.00019316,2]
[405720536,1771258243892,-300.0,0.00019316,2]
[405720537,1771258243902,-300.0,0.00019316,2]
[405720538,1771258243912,-300.0,0.00019316,2]
[405720539,1771258243922,-300.0,0.00019316,2]
[405720540,1771258243931,-300.0,0.00019316,2]
[405720541,1771258243940,-300.0,0.00019316,2]
[405720542,1771258243950,-300.0,0.00019316,2]
[405720543,1771258243959,-300.0,0.00019316,2]
[405720544,1771258243968,-300.0,0.00019316,2]
[405720545,1771258243977,-300.0,0.00019316,2]
[405720546,1771258243987,-300.0,0.00019316,2]
[405720547,1771258243998,-300.0,0.00019316,2]
[405720548,1771258244007,-160.0,0.00019384,5]
[405720549,1771258244023,-500.0,0.00019401,2]
[405720550,1771258244041,-500.0,0.00019401,2]
[405720551,1771258244054,-743.355046,0.00019417,2]
[405720552,1771258244064,-255.92971243,0.00019595,2]
[405720553,1771258244074,-168.0,0.0001964,2]
[405720554,1771258244084,-600.0,0.00019701,2]
[405720555,1771258244093,-500.0,0.00019714,2]
[405720556,1771258244102,-500.0,0.00019769,2]
[405720557,1771258244113,-10943.64784511,0.0001978,2]
[405720558,1771258244125,-771.14628782,0.0001978,2]
[405720559,1771258244136,-355.51999999,0.0001978,2]
[405720560,1771258244147,-3799.41172847,0.0001978,2]
[405720575,1771258246409,-21167.36663064,0.0001978,2]
[405720576,1771258246418,-491.26296409,0.00019793,2]
[405720577,1771258246427,-1509.06561274,0.00019793,2]
[405720578,1771258246438,-2170.88142787,0.00019793,2]
[405720579,1771258246447,-500.0,0.00019824,2]
[405720580,1771258246457,-500.0,0.00019878,2]
[405720581,1771258246466,-6430.72801992,0.0001988,2]
[405720582,1771258246476,-5000.0,0.0001988,2]
[405720583,1771258246485,-5000.0,0.0001988,2]
[405720584,1771258246495,-155.21615516,0.00019933,2]
[405720585,1771258246504,-112.30248497,0.0002,2]
[405720586,1771258246514,-206.30815319,0.0002,2]
[405720587,1771258246523,-14764.12751844,0.0002,2]
[405720588,1771258246533,-6995.48046298,0.0002,14]
[405720589,1771258246545,-23424.47013629,0.0002,14]
[405720590,1771258246561,-301.80929101,0.0002,14]
[405720592,1771258246641,-1142.3617184,0.0002,14]
[405720594,1771258341963,650.0,0.00013496,2]
[405720597,1771258506809,190.84808815,0.00013699,2]
[405720618,1771259147128,-619.85169068,0.00017186,2]
[405720622,1771259189305,151.8131859,0.00013699,2]
[405720623,1771259225127,-1256.02917708,0.00017186,2]
[405720626,1771259239102,-2111.73724124,0.00017014,2]
[405720627,1771259249090,-2393.73100998,0.00017014,2]
[405720628,1771259249112,-839.62527727,0.00017186,2]
[405720670,1771259432600,-1676.68251278,0.00016844,2]
[405720671,1771259432611,-588.0,0.00017014,2]
[405720673,1771259432621,-244.29692884,0.00017273,2]
[405720674,1771259432631,-866.19812483,0.00017323,2]
[405720675,1771259432642,-398.75250533,0.00017998,2]
[405720676,1771259432653,-801.24749467,0.00017998,2]
[405720677,1771259432664,-300.0,0.00017999,2]
[405720678,1771259432673,-21.77893155,0.00017999,2]
[405720679,1771259432686,-278.22106845,0.00017999,2]
[405720680,1771259432696,-85.47254682,0.00017999,2]
[405720681,1771259432708,-214.52745318,0.00017999,2]
[405720682,1771259432718,-1385.69706696,0.00018,2]
[405720683,1771259432727,-261.8801491,0.00018,2]
[405720684,1771259432739,-424.72702378,0.00018,2]
[405720685,1771259432748,-1674.71583699,0.00018042,2]
[405720686,1771259432758,-1691.61250274,0.0001826,2]
[405720702,1771259439136,-1326.94071423,0.0001826,2]
[405720703,1771259439147,-500.0,0.00018329,2]
[405720704,1771259439158,-6730.10111017,0.00018331,2]
[405720705,1771259439171,-43269.89888983,0.00018331,2]
[405720706,1771259439181,-179.0,0.0001836,120]
[405720707,1771259439191,-852.31,0.00018433,2]
[405720708,1771259439201,-852.31,0.00018433,2]
[405720709,1771259439211,-852.31,0.00018433,2]
[405720710,1771259439220,-852.31,0.0001846,2]
[405720711,1771259439230,-852.31,0.0001846,2]
[405720712,1771259439240,-2234.57036797,0.00018465,2]
[405720713,1771259439250,-230.95,0.000185,2]
[405720714,1771259439259,-500.0,0.00018534,2]
[405720715,1771259439269,-500.0,0.00018534,2]
[405720716,1771259439278,-500.0,0.00018534,2]
[405720717,1771259439287,-852.31,0.00018779,2]
[405720718,1771259439297,-634.0,0.0001878,2]
[405720719,1771259439307,-1381.762,0.0001878,2]
[405720721,1771259439316,-743.355046,0.00018822,2]
[405720723,1771259439325,-852.31,0.00018826,2]
[405720724,1771259439334,-500.0,0.00018831,2]
[405720725,1771259439344,-500.0,0.00018831,2]
[405720726,1771259439354,-500.0,0.00018831,2]
[405720727,1771259439363,-500.0,0.00018831,2]
[405720728,1771259439372,-492.93806859,0.00018892,2]
[405720729,1771259439382,-204.26,0.00018977,3]
[405720730,1771259439391,-817.02,0.00018987,3]
[405720731,1771259439402,-408.51,0.00018987,3]
[405720732,1771259439411,-612.79,0.00018987,3]
[405720733,1771259439420,-100000.0,0.0001899,2]
[405720734,1771259439429,-250.0,0.00018999,2]
[405720735,1771259439438,-250.0,0.00018999,2]
[405720736,1771259439447,-250.0,0.00018999,2]
[405720737,1771259439457,-250.0,0.00018999,2]
[405720738,1771259439466,-250.0,0.00018999,2]
[405720739,1771259439479,-326.03778922,0.00018999,2]
[405720740,1771259439488,-250.0,0.00018999,2]
[405720741,1771259439498,-250.0,0.00018999,2]
[405720742,1771259439507,-259.92281873,0.00018999,2]
[405720743,1771259439516,-250.0,0.00018999,2]
[405720744,1771259439525,-174.61919141,0.00018999,2]
[405720745,1771259439535,-151.0,0.00018999,2]
[405720746,1771259439545,-250.0,0.00018999,2]
[405720747,1771259439555,-181.08010149,0.00018999,2]
[405720748,1771259439563,-151.0,0.00018999,2]
[405720749,1771259439572,-500.0,0.00018999,2]
[405720750,1771259439583,-250.0,0.00018999,2]
[405720751,1771259439592,-151.0,0.00018999,2]
[405720752,1771259439602,-187.78006525,0.00018999,2]
[405720753,1771259439611,-500.0,0.00018999,2]
[405720754,1771259439621,-250.0,0.00018999,2]
[405720755,1771259439631,-151.0,0.00018999,2]
[405720756,1771259439641,-194.72792766,0.00018999,2]
[405720757,1771259439650,-500.0,0.00018999,2]
[405720758,1771259439660,-250.0,0.00018999,2]
[405720759,1771259439669,-151.0,0.00018999,2]
[405720760,1771259439678,-201.93286099,0.00018999,2]
[405720761,1771259439688,-500.0,0.00018999,2]
[405720762,1771259439698,-250.0,0.00018999,2]
[405720763,1771259439707,-209.40437684,0.00018999,2]
[405720764,1771259439716,-151.0,0.00018999,2]
[405720765,1771259439726,-500.0,0.00018999,2]
[405720766,1771259439735,-250.0,0.00018999,2]
[405720767,1771259439747,-500.0,0.00018999,2]
[405720768,1771259439757,-217.15233878,0.00018999,2]
[405720769,1771259439766,-151.0,0.00018999,2]
[405720770,1771259439775,-250.0,0.00018999,2]
[405720771,1771259439784,-250.0,0.00018999,2]
[405720772,1771259439794,-500.0,0.00018999,2]
[405720773,1771259439803,-151.0,0.00018999,2]
[405720774,1771259439815,-225.18697532,0.00018999,2]
[405720775,1771259439825,-250.0,0.00018999,2]
[405720776,1771259439834,-250.0,0.00018999,2]
[405720777,1771259439844,-500.0,0.00018999,2]
[405720778,1771259439854,-250.0,0.00018999,2]
[405720779,1771259439863,-151.0,0.00018999,2]
[405720780,1771259439872,-233.51889341,0.00018999,2]
[405720781,1771259439882,-250.0,0.00018999,2]
[405720782,1771259439892,-250.0,0.00018999,2]
[405720783,1771259439901,-500.0,0.00018999,2]
[405720784,1771259439911,-336.40553352,0.00018999,2]
[405720785,1771259439920,-151.0,0.00018999,2]
[405720786,1771259439930,-242.15909246,0.00018999,2]
[405720787,1771259439939,-250.0,0.00018999,2]
[405720788,1771259439948,-250.0,0.00018999,2]
[405720789,1771259439957,-250.0,0.00018999,2]
[405720790,1771259439970,-500.0,0.00018999,2]
[405720791,1771259439979,-311.86690858,0.00018999,2]
[405720792,1771259439990,-164.15971138,0.00018999,2]
[405720793,1771259440000,-251.11897888,0.00018999,2]
[405720794,1771259440009,-250.0,0.00018999,2]
[405720795,1771259440019,-500.0,0.00018999,2]
[405720796,1771259440029,-260.4103811,0.00018999,2]
[405720797,1771259440039,-250.0,0.00018999,2]
[405720798,1771259440053,-500.0,0.00018999,2]
[405720799,1771259440063,-270.0455652,0.00018999,2]
[405720800,1771259440074,-250.0,0.00018999,2]
[405720801,1771259440084,-500.0,0.00018999,2]
[405720802,1771259440094,-280.03725112,0.00018999,2]
[405720803,1771259440103,-250.0,0.00018999,2]
[405720804,1771259440112,-500.0,0.00018999,2]
[405720805,1771259440122,-290.39862941,0.00018999,2]
[405720806,1771259440132,-250.0,0.00018999,2]
[405720807,1771259440141,-500.0,0.00018999,2]
[405720808,1771259440151,-301.1433787,0.00018999,2]
[405720809,1771259440160,-250.0,0.00018999,2]
[405720810,1771259440170,-500.0,0.00018999,2]
[405720811,1771259440179,-228.68250585,0.00018999,2]
[405720812,1771259440189,-250.0,0.00018999,2]
[405720813,1771259440198,-500.0,0.00018999,2]
[405720814,1771259440208,-250.0,0.00018999,2]
[405720815,1771259440217,-250.0,0.00018999,2]
[405720816,1771259440227,-500.0,0.00018999,2]
[405720817,1771259440237,-5678.9949851,0.00019,2]
[405720818,1771259440246,-150.0,0.00019007,2]
[405720819,1771259440256,-2262.45693237,0.00019016,2]
[405720820,1771259440265,-500.0,0.00019062,2]
[405720821,1771259440274,-200.0,0.00019063,120]
[405720822,1771259440283,-151.0,0.000191,2]
[405720823,1771259440293,-309.0,0.00019112,2]
[405720824,1771259440303,-169.114,0.00019178,2]
[405720825,1771259440312,-173.68,0.000192,2]
[405720826,1771259440321,-151.0,0.000192,2]
[405720827,1771259440331,-151.0,0.000192,2]
[405720828,1771259440341,-1765580.50735957,0.00019206,2]
[405720829,1771259440350,-300.0,0.00019208,2]
[405720830,1771259440359,-300.0,0.00019208,2]
[405720831,1771259440369,-300.0,0.00019208,2]
[405720832,1771259440378,-300.0,0.00019208,2]
[405720833,1771259440387,-300.0,0.00019208,2]
[405720835,1771259440396,-300.0,0.00019208,2]
[405720836,1771259440406,-300.0,0.00019208,2]
[405720837,1771259440416,-300.0,0.00019208,2]
[405720838,1771259440425,-300.0,0.00019208,2]
[405720839,1771259440434,-300.0,0.00019208,2]
[405720840,1771259440443,-300.0,0.00019208,2]
[405720841,1771259440452,-300.0,0.00019208,2]
[405720842,1771259440462,-300.0,0.00019208,2]
[405720844,1771259440471,-300.0,0.00019208,2]
[405720846,1771259440480,-300.0,0.00019208,2]
[405720848,1771259440490,-600.0,0.00019208,2]
[405720850,1771259440510,-288.27037603,0.00019273,2]
[405720852,1771259440520,-500.0,0.00019273,2]
[405720853,1771259440530,-179.0,0.00019278,120]
[405720855,1771259440540,-378.0,0.00019278,2]
[405720856,1771259440549,-852.31,0.00019294,2]
[405720857,1771259440559,-160.0,0.00019384,5]
[405720858,1771259440571,-826.0,0.00019469,2]
[405720859,1771259440741,-500.0,0.00019547,2]
[405720860,1771259440751,-190.6295898,0.000196,2]
[405720861,1771259440761,-510.32,0.00019638,2]
[405720862,1771259440770,-420.0,0.00019639,2]
[405720863,1771259440779,-200.0,0.00019691,120]
[405720864,1771259440789,-826.0,0.00019691,2]
[405720865,1771259440798,-2745.4700573,0.00019695,2]
[405720866,1771259440808,-2500.0,0.000197,2]
[405720867,1771259440818,-191892.325646,0.000197,2]
[405720868,1771259440827,-150.0,0.00019712,2]
[405720869,1771259440836,-800.0,0.00019725,2]
[405720870,1771259440845,-430.43570081,0.0001973,2]
[405720871,1771259440855,-800.0,0.00019734,2]
[405720872,1771259440864,-1200.0,0.00019734,2]
[405720873,1771259440873,-800.0,0.00019735,2]
[405720874,1771259440882,-500.0,0.00019745,2]
[405720875,1771259440891,-1901.8100073,0.00019746,2]
[405720876,1771259440901,-8816.795497,0.00019746,2]
[405720877,1771259440910,-800.0,0.00019764,2]
[405720878,1771259440920,-852.31,0.00019766,2]
[405720879,1771259440929,-150.0,0.00019767,2]
[405720881,1771259440938,-800.0,0.0001978,2]
[405720882,1771259440948,-800.0,0.00019787,2]
[405720883,1771259440957,-261.41204413,0.00019793,2]
[405720884,1771259440969,-470.54167944,0.00019793,2]
[405720885,1771259440980,-836.51854123,0.00019793,2]
[405720886,1771259440990,-283.56947426,0.00019793,2]
[405720887,1771259441000,-510.42505367,0.00019793,2]
[405720888,1771259441010,-907.42231763,0.00019793,2]
[405720891,1771259441023,-1417.84737129,0.00019793,2]
[405720892,1771259441032,-2041.70021466,0.00019793,2]
[405720894,1771259441042,-1307.06022067,0.00019793,2]
[405720897,1771259441052,-2778.98084774,0.00019793,2]
[405720898,1771259441061,-1882.16671777,0.00019793,2]
[405720900,1771259441070,-2561.83803251,0.00019793,2]
[405720902,1771259441079,-160.44340106,0.00019796,2]
[405720904,1771259441089,-2500.0,0.000198,2]
[405720906,1771259441099,-500.0,0.00019821,2]
[405720909,1771259441109,-150.0,0.00019822,2]
[405720910,1771259441119,-323.3963262,0.00019826,2]
[405720913,1771259441128,-150.0,0.00019826,2]
[405720915,1771259441138,-323.3963262,0.00019826,2]
[405720916,1771259441148,-150.0,0.00019826,2]
[405720919,1771259441158,-323.3963262,0.00019826,2]
[405720920,1771259441167,-323.4377059,0.00019826,2]
[405720923,1771259441176,-323.3963262,0.00019829,2]
[405720925,1771259441186,-191.919903,0.00019829,2]
[405720927,1771259441195,-323.3963262,0.00019829,2]
[405720929,1771259441204,-323.3963262,0.00019829,2]
[405720930,1771259441214,-323.3963262,0.00019829,2]
[405720933,1771259441223,-323.3963262,0.00019829,2]
[405720935,1771259441233,-150.6032732,0.00019829,2]
[405720936,1771259441242,-150.0,0.00019829,2]
[405720938,1771259441252,-323.4377059,0.00019829,2]
[405720940,1771259441261,-195.4493912,0.00019829,2]
[405720942,1771259441270,-195.4493912,0.00019829,2]
[405720944,1771259441279,-323.3963262,0.00019829,2]
[405720947,1771259441293,-195.4493912,0.00019829,2]
[405720949,1771259441302,-195.4493912,0.00019829,2]
[405720951,1771259441312,-323.3963262,0.00019829,2]
[405720953,1771259441321,-195.4493912,0.00019829,2]
[405720955,1771259441330,-184.398626,0.00019829,2]
[405720957,1771259441339,-195.4493912,0.00019829,2]
[405720959,1771259441349,-150.0,0.0001983,2]
[405720961,1771259441358,-323.3963262,0.0001983,2]
[405720963,1771259441367,-150.0,0.0001983,2]
[405720965,1771259441377,-150.0,0.0001983,2]
[405720967,1771259441387,-150.0,0.0001983,2]
[405720969,1771259441399,-323.3963262,0.0001983,2]
[405720971,1771259441409,-323.3963262,0.0001983,2]
[405720973,1771259441418,-323.3963262,0.0001983,2]
[405720975,1771259441428,-323.3963262,0.0001983,2]
[405720977,1771259441439,-323.3963262,0.0001983,2]
[405720979,1771259441449,-150.0,0.0001983,2]
[405720981,1771259441463,-852.31,0.00019839,2]
[405720983,1771259441472,-323.3963262,0.00019845,2]
[405720985,1771259441481,-150.0,0.00019846,2]
[405720987,1771259441491,-826.0,0.00019856,2]
[405720989,1771259441501,-800.0,0.00019861,2]
[405720991,1771259441510,-150.0,0.00019876,2]
[405720993,1771259441519,-5406.21832774,0.00019881,2]
[405720995,1771259441528,-5000.0,0.00019881,2]
[405720997,1771259441538,-886.77,0.000199,2]
[405720999,1771259441547,-800.0,0.00019901,2]
[405721001,1771259441556,-800.0,0.00019908,2]
[405721003,1771259441565,-3018.55321691,0.00019923,2]
[405721005,1771259441575,-800.0,0.00019923,2]
[405721007,1771259441585,-150.0,0.00019931,2]
[405721009,1771259441595,-826.0,0.00019948,2]
[405721011,1771259441604,-826.0,0.00019951,2]
[405721013,1771259441613,-800.0,0.00019971,2]
[405721015,1771259441622,-800.0,0.0001998,2]
[405721017,1771259441632,-800.0,0.00019982,2]
[405721019,1771259441641,-250.0,0.00019986,2]
[405721021,1771259441650,-500.0,0.00019989,2]
[405721023,1771259441659,-361.94,0.00019989,2]
[405721025,1771259441668,-891.32,0.00019989,2]
[405721027,1771259441678,-852.31,0.00019989,2]
[405721029,1771259441687,-852.31,0.00019989,2]
[405721031,1771259441696,-852.31,0.00019989,2]
[405721033,1771259441705,-852.31,0.00019989,2]
[405721035,1771259441715,-852.31,0.00019989,2]
[405721037,1771259441724,-800.0,0.00019991,2]
[405721039,1771259441733,-852.31,0.00019998,2]
[405721041,1771259441744,-852.31,0.00019999,2]
[405721043,1771259441753,-852.31,0.00019999,2]
[405721044,1771259441761,-852.31,0.00019999,2]
[405721046,1771259441771,-852.31,0.00019999,2]
[405721048,1771259441780,-852.31,0.00019999,2]
[405721051,1771259441790,-852.31,0.00019999,2]
[405721053,1771259441800,-852.31,0.00019999,2]
[405721055,1771259441809,-852.5358201,0.00019999,2]
[405721057,1771259441819,-40994.87839132,0.0002,14]
[405721058,1771259441828,-13436.92414245,0.0002,5]
[405721060,1771259441838,-14942.84049018,0.0002,2]
[405721063,1771259441847,-1001.0,0.0002,6]
[405721065,1771259441857,-10000.0,0.0002,10]
[405721066,1771259441870,-4200.000001,0.0002,2]
[405721068,1771259441879,-152.80301137,0.0002,2]
[405721071,1771259441890,-300.0,0.0002,2]
[405721073,1771259441899,-373.33223492,0.0002,2]
[405721075,1771259441909,-23000.0,0.0002,2]
[405721077,1771259441919,-203.67201305,0.0002,2]
[405721078,1771259441928,-506.61544912,0.0002,2]
[405721080,1771259441937,-55229.25139023,0.0002,7]
[405721083,1771259441948,-10144.4995632,0.0002,20]
[405721085,1771259441957,-4604.08635602,0.0002,2]
[405721087,1771259441970,-167.0,0.0002,3]
[405721089,1771259441982,-199.37718475,0.0002,2]
[405721091,1771259441993,-1200.0,0.0002,5]
[405721093,1771259442003,-50000.0,0.0002,30]
[405721095,1771259442012,-211.53785719,0.0002,2]
[405721097,1771259442021,-250.0,0.0002,10]
[405721099,1771259442030,-150.0,0.0002,2]
[405721101,1771259442042,-7297.29,0.0002,2]
[405721103,1771259442052,-262.94211839,0.0002,7]
[405721105,1771259442062,-1358521.15639908,0.0002,2]
[405721107,1771259442077,-248175.25380445,0.0002,2]
[405721119,1771259442182,-981.12345743,0.0002,2]
[405721122,1771259442195,-2370.54731969,0.0002,2]
[405721124,1771259442206,-1010.9757568,0.0002,2]
[405721126,1771259442216,-6757.42593967,0.0002,2]
[405721320,1771259444167,-401.81660249,0.0001833,2]
[405721323,1771259444179,-98.18339751,0.0001833,2]
[405721325,1771259444189,-355.81471231,0.0001833,2]
[405721327,1771259444198,-500.0,0.0001833,2]
[405721329,1771259444207,-500.0,0.0001833,2]
[405721331,1771259444216,-500.0,0.0001833,2]
[405721333,1771259444225,-500.0,0.0001833,2]
[405721335,1771259444235,-500.0,0.0001833,2]
[405721337,1771259444245,-500.0,0.0001833,2]
[405721339,1771259444255,-500.0,0.0001833,2]
[405721341,1771259444264,-500.0,0.0001833,2]
[405721343,1771259444274,-2719.63160367,0.0002,2]
[405721580,1771259446590,-29292.39161491,0.0002,2]
[405721582,1771259446602,-407.842,0.0002,2]
[405721587,1771259446646,-1042.12160456,0.0002,2]
[405721590,1771259446658,-1124.65866456,0.0002,2]
[405721687,1771259481877,517.69361658,0.00013699,2]
[405721688,1771259520018,-300.0,0.00018329,2]
[405721689,1771259520039,-300.0,0.0001833,2]
[405721690,1771259520050,-200.0,0.0001833,2]
[405721691,1771259520061,-210.36187964,0.0001833,2]
[405721692,1771259525925,17.38492542,0.00013699,2]
[405721693,1771259525947,482.61507458,0.00013699,2]
[405721695,1771259707036,504.13955977,0.00013273,2]
[405721696,1771259717735,500.0,0.00013273,2]
[405721697,1771259717789,1000.0,0.00013821,2]
[405721698,1771259718080,911.34022662,0.00014368,2]
[405721699,1771259721342,500.0,0.00013699,2]
[405721700,1771259721374,267.2856157,0.00014247,2]
[405721702,1771259784377,500.0,0.00013699,2]
[405721703,1771259880503,198.2,8.238e-05,2]
[405721713,1771260087928,500.0,0.00013273,2]
[405721714,1771260093420,168.37516983,0.00013273,2]
[405721716,1771260096344,500.0,0.00013273,2]
[405721717,1771260100890,501.71596197,0.00013273,2]
[405721747,1771260332118,-635.02945913,0.00017658,2]
[405721750,1771260425124,-545.93594969,0.00017658,2]
[405721751,1771260425150,-266.93512656,0.00017729,2]
[405721752,1771260425172,-92.48660654,0.00017799,2]
[405721753,1771260452110,-445.05700846,0.00017799,2]
[405721754,1771260452129,-150.0,0.00017808,2]
[405721755,1771260452150,-155.14468888,0.00017837,2]
[405721756,1771260453085,-442.33588112,0.00017837,2]
[405721757,1771260453105,-300.0,0.00018074,2]
[405721758,1771260453125,-300.0,0.00018074,2]
[405721759,1771260453147,-1200.0,0.00018074,2]
[405721760,1771260453167,-300.0,0.00018074,2]
[405721761,1771260453188,-95.44896435,0.00018075,2]
[405721762,1771260625249,500.0,0.00013273,2]
[405721857,1771260637881,-247.89524263,0.00018072,2]
[405721858,1771260637890,-300.0,0.00018072,2]
[405721860,1771260637900,-233.53342457,0.00018072,2]
[405722263,1771260643753,-66.46657543,0.00018072,2]
[405722265,1771260643762,-1200.0,0.00018072,2]
[405722267,1771260643770,-500.0,0.00018073,2]
[405722269,1771260643779,-500.0,0.00018073,2]
[405722271,1771260643788,-500.0,0.00018073,2]
[405722273,1771260643798,-500.0,0.00018073,2]
[405722275,1771260643807,-500.0,0.00018073,2]
[405722276,1771260643816,-500.0,0.00018073,2]
[405722278,1771260643824,-500.0,0.00018073,2]
[405722280,1771260643834,-317.07042808,0.00018073,2]
[405722282,1771260643843,-500.0,0.00018073,2]
[405722284,1771260643852,-500.0,0.00018073,2]
[405722286,1771260643860,-500.0,0.00018073,2]
[405722288,1771260643869,-500.0,0.00018073,2]
[405722290,1771260643879,-500.0,0.00018073,2]
[405722292,1771260643887,-500.0,0.00018073,2]
[405722294,1771260643896,-500.0,0.00018073,2]
[405722296,1771260643906,-500.0,0.00018073,2]
[405722298,1771260643915,-500.0,0.00018073,2]
[405722300,1771260643924,-500.0,0.00018073,2]
[405722302,1771260643933,-500.0,0.00018073,2]
[405722304,1771260643942,-500.0,0.00018073,2]
[405722306,1771260643952,-500.0,0.00018073,2]
[405722308,1771260643960,-500.0,0.00018073,2]
[405722310,1771260643970,-500.0,0.00018073,2]
[405722312,1771260643979,-500.0,0.00018073,2]
[405722314,1771260643990,-500.0,0.00018073,2]
[405722316,1771260643999,-500.0,0.00018073,2]
[405722318,1771260644009,-500.0,0.00018073,2]
[405722320,1771260644018,-500.0,0.00018073,2]
[405722322,1771260644027,-500.0,0.00018073,2]
[405722324,1771260644036,-375.46119073,0.00018073,2]
[405722326,1771260644047,-500.0,0.00018073,2]
[405722328,1771260644056,-558.51005119,0.00018073,2]
[405722330,1771260644065,-500.0,0.00018073,2]
[405722332,1771260644075,-500.0,0.00018073,2]
[405722334,1771260644084,-500.0,0.00018073,2]
[405722336,1771260644093,-500.0,0.00018073,2]
[405722338,1771260644102,-500.0,0.00018073,2]
[405722340,1771260644111,-500.0,0.00018073,2]
[405722342,1771260644120,-500.0,0.00018073,2]
[405722344,1771260644129,-500.0,0.00018073,2]
[405722346,1771260644139,-500.0,0.00018073,2]
[405722348,1771260644148,-500.0,0.00018073,2]
[405722350,1771260644157,-500.0,0.00018073,2]
[405722352,1771260644167,-500.0,0.00018073,2]
[405722354,1771260644177,-500.0,0.00018073,2]
[405722356,1771260644186,-500.0,0.00018073,2]
[405722358,1771260644195,-500.0,0.00018073,2]
[405722360,1771260644204,-500.0,0.00018073,2]
[405722362,1771260644213,-500.0,0.00018073,2]